bitfinex-derivatives/quotes_SOLF0:USTF0_20240910
["timestamp","ask_amount","ask_price","bid_price","bid_amount"]
[1725970348354,3.6925,135.41,135.38,3.693]
[1725970349764,12.762,135.42,135.39,3.6927]
[1725970350063,3.62669707,135.44,135.38,9.07]
[1725970350064,9.07,135.44,135.38,9.07]
[1725970350451,9.07,135.42,135.36,9.07]
[1725970350960,3.6923,135.41,135.36,9.07]
[1725970352165,3.6923,135.41,135.38,3.6929]
[1725970353362,12.7621,135.42,135.39,3.6928]
[1725970354662,3.6923,135.41,135.39,3.6928]
[1725970354863,9.07,135.41,135.37,3.6932]
[1725970355159,3.6927,135.4,135.37,3.6932]
[1725970355360,9.07,135.41,135.36,3.6935]
[1725970355862,9.07,135.41,135.35,9.07]
[1725970355863,3.6927,135.4,135.35,9.07]
[1725970356058,3.6927,135.4,135.37,3.6933]
[1725970357968,9.07,135.4,135.36,3.6936]
[1725970358969,3.693,135.39,135.36,3.6936]
[1725970359569,3.6932,135.38,135.36,3.6936]
[1725970362067,3.6929,135.39,135.36,3.6936]
[1725970364167,12.7627,135.4,135.37,3.6932]
[1725970364774,3.6924,135.41,135.35,9.07]
[1725970364974,3.6924,135.41,135.37,9.07]
[1725970365464,3.6924,135.41,135.33,2.6443]
[1725970365465,9.07,135.42,135.36,9.07]
[1725970365665,3.64073006,135.46,135.36,9.07]
[1725970365866,3.6924,135.41,135.39,3.6928]
[1725970367671,3.6917,135.43,135.4,3.6925]
[1725970367877,9.07,135.45,135.38,9.07]
[1725970368064,9.07,135.44,135.38,9.07]
[1725970368269,3.6922,135.42,135.39,3.6927]
[1725970369466,3.6922,135.42,135.33,10.0329]
[1725970369467,3.6918,135.43,135.4,3.6925]
[1725970369663,9.07,135.44,135.38,9.07]
[1725970370076,12.7615,135.44,135.4,3.6924]
[1725970371271,3.6918,135.43,135.4,3.6924]
[1725970371979,12.7616,135.44,135.4,3.6924]
[1725970372574,3.6916,135.44,135.41,3.6922]
[1725970373278,12.7613,135.45,135.39,2.7032]
[1725970373582,12.7613,135.45,135.39,11.7732]
[1725970374474,12.7613,135.45,135.41,3.6921]
[1725970374874,3.6916,135.44,135.41,3.6921]
[1725970375077,9.07,135.45,135.4,3.6924]
[1725970375283,9.07,135.44,135.4,3.6924]
[1725970375673,3.6919,135.43,135.4,3.6924]
[1725970377983,3.692,135.42,135.39,6.3959]
[1725970378186,9.07,135.41,135.36,9.07]
[1725970378384,9.07,135.41,135.34,11.7538]
[1725970378587,3.6927,135.4,135.37,3.6931]
[1725970379779,3.6927,135.4,135.34,11.7538]
[1725970379780,3.6927,135.4,135.36,9.07]
[1725970380380,3.6927,135.4,135.37,3.6932]
[1725970381379,9.07,135.39,135.34,11.7538]
[1725970383492,12.7629,135.39,135.36,3.6935]
[1725970384595,3.6926,135.4,135.37,3.6933]
[1725970384798,9.07,135.41,135.35,9.07]
[1725970385298,12.76420632,135.41,135.35,9.07]
[1725970385499,12.76420632,135.41,135.36,3.6935]
[1725970386094,9.07,135.38,135.34,2.6838]
[1725970386300,9.07,135.37,135.32,1.2822]
[1725970388198,12.7635,135.37,135.32,1.2822]
[1725970388701,9.07,135.37,135.32,1.2822]
[1725970388897,12.7635,135.37,135.33,3.6943]
[1725970389396,3.69420632,135.41,135.33,3.6943]
[1725970389397,12.7632,135.38,135.34,3.6939]
[1725970390997,3.6929,135.39,135.35,3.6939]
[1725970391200,9.07,135.4,135.34,9.07]
[1725970391401,7.3811,135.48,135.36,9.07]
[1725970391601,7.3811,135.48,135.32,1.2822]
[1725970391602,3.6921,135.42,135.37,9.07]
[1725970392010,3.6921,135.42,135.38,3.6929]
[1725970392306,3.6921,135.42,135.37,9.07]
[1725970392509,3.6921,135.42,135.38,3.6928]
[1725970392907,3.6921,135.42,135.37,9.07]
[1725970393309,3.6918,135.43,135.37,9.07]
[1725970394015,3.692,135.42,135.39,3.6926]
[1725970395606,3.70953292,135.53,135.39,9.07]
[1725970395607,9.07,135.46,135.39,9.07]
[1725970395814,11.08803292,135.53,135.41,9.07]
[1725970396010,3.691,135.46,135.43,3.6916]
[1725970397315,3.6912,135.45,135.43,3.6916]
[1725970397919,3.691,135.46,135.43,3.6916]
[1725970400308,3.6912,135.46,135.43,3.6916]
[1725970400517,9.07,135.46,135.43,3.6916]
[1725970401315,3.691,135.46,135.43,3.6916]
[1725970401618,12.761,135.46,135.43,3.6916]
[1725970402829,3.6912,135.45,135.42,3.6918]
[1725970404219,12.761,135.46,135.43,3.6917]
[1725970405416,3.6912,135.45,135.42,3.6918]
[1725970406214,9.07,135.43,135.38,3.8671]
[1725970406823,3.692,135.42,135.38,3.8671]
[1725970407414,12.762,135.42,135.38,3.8671]
[1725970407728,9.07,135.42,135.38,3.8671]
[1725970408133,3.6923,135.41,135.38,7.56]
[1725970410710,3.6925,135.4,135.38,3.8671]
[1725970410913,3.6925,135.4,135.38,2.5482]
[1725970411421,12.7625,135.4,135.38,2.5482]
[1725970414314,12.7625,135.4,135.38,1.2771]
[1725970415516,9.07,135.4,135.38,1.2771]
[1725970416021,12.7627,135.4,135.38,1.2771]
[1725970416827,3.6924,135.41,135.38,4.9701]
[1725970417130,9.07,135.42,135.38,1.2771]
[1725970417316,3.6923,135.41,135.39,3.6928]
[1725970417625,9.07,135.42,135.39,3.6928]
[1725970417821,9.07,135.42,135.38,1.2771]
[1725970418119,3.6924,135.41,135.38,4.97]
[1725970421429,12.7622,135.42,135.39,3.6927]
[1725970421628,9.07,135.42,135.38,1.2771]
[1725970421828,3.6924,135.41,135.38,4.97]
[1725970423028,3.6926,135.4,135.38,4.97]
[1725970423529,3.6927,135.4,135.37,3.6932]
[1725970423734,9.07,135.41,135.35,9.07]
[1725970424129,12.7622,135.42,135.35,9.07]
[1725970424329,12.7622,135.42,135.36,10.3624]
[1725970424526,12.7622,135.42,135.39,3.6926]
[1725970427028,9.07,135.42,135.37,1.2917]
[1725970427731,3.6926,135.4,135.38,3.693]
[1725970428640,3.6924,135.41,135.38,3.693]
[1725970429527,3.6924,135.41,135.37,1.2917]
[1725970429528,3.6924,135.41,135.39,3.6927]
[1725970429731,12.762,135.42,135.37,1.2917]
[1725970429930,12.762,135.42,135.38,1.27]
[1725970430229,12.762,135.42,135.39,3.6927]
[1725970431022,3.692,135.42,135.38,1.27]
[1725970431230,3.692,135.42,135.4,3.6925]
[1725970431838,12.7618,135.43,135.4,3.6925]
[1725970432431,3.692,135.42,135.4,3.6925]
[1725970434143,12.7619,135.43,135.4,3.6925]
[1725970436037,12.7619,135.43,135.38,1.27]
[1725970436232,12.7616,135.44,135.39,9.07]
[1725970437035,12.7616,135.44,135.41,3.692]
[1725970441630,3.6917,135.43,135.4,3.6924]
[1725970441837,12.7617,135.43,135.4,3.6924]
[1725970442045,9.07,135.42,135.38,1.27]
[1725970442239,9.07,135.42,135.39,3.6926]
[1725970442240,12.7621,135.42,135.39,3.6926]
[1725970443941,3.6923,135.41,135.39,3.6926]
[1725970444345,3.6923,135.41,135.38,4.963]
[1725970449841,3.6925,135.4,135.38,4.963]
[1725970450048,9.07,135.42,135.38,4.963]
[1725970450244,3.6924,135.41,135.38,4.963]
[1725970450439,9.07,135.42,135.38,1.27]
[1725970450843,9.07,135.43,135.4,3.6924]
[1725970451445,12.7618,135.43,135.4,3.6924]
[1725970457150,3.692,135.42,135.39,3.6927]
[1725970459548,151.72570356,135.47,135.4,9.07]
[1725970459750,27.45453132,135.59,135.42,9.07]
[1725970459949,9.07,135.47,135.42,9.07]
[1725970460152,9.07,135.47,135.44,3.6913]
[1725970460953,12.7606,135.47,135.44,3.6913]
[1725970461154,3.63186285,135.55,135.42,3.6918]
[1725970461155,9.07,135.46,135.42,3.6918]
[1725970461543,12.7609,135.46,135.42,3.6918]
[1725970462056,9.07,135.43,135.41,3.6921]
[1725970462553,9.07,135.43,135.38,1.27]
[1725970462554,9.07,135.42,135.38,1.27]
[1725970462754,9.07,135.41,135.38,1.27]
[1725970462949,9.07,135.41,135.38,4.9629]
[1725970464358,12.7623,135.41,135.38,4.9629]
[1725970464751,12.7623,135.41,135.37,1.2917]
[1725970464952,9.07,135.39,135.33,14.85496128]
[1725970465148,9.07,135.39,135.33,10.4002]
[1725970465954,9.07,135.39,135.36,3.6936]
[1725970466751,12.7628,135.39,135.36,3.6936]
[1725970466950,3.61289607,135.45,135.36,9.07]
[1725970467159,12.7623,135.41,135.35,9.07]
[1725970467461,9.07,135.4,135.35,9.07]
[1725970467648,9.07,135.4,135.38,3.6931]
[1725970468351,9.07,135.4,135.33,1.3302]
[1725970468352,9.07,135.39,135.33,1.3302]
[1725970468554,9.07,135.37,135.33,1.3302]
[1725970468757,9.07,135.37,135.34,3.6942]
[1725970468758,9.07,135.35,135.34,3.6942]
[1725970469555,9.07,135.35,135.33,5.0245]
[1725970471054,9.07,135.35,135.34,3.6942]
[1725970471454,3.6935,135.37,135.34,3.6942]
[1725970471655,9.07,135.37,135.34,3.6942]
[1725970472256,9.07,135.36,135.33,5.0246]
[1725970472760,12.7638,135.36,135.32,5.0927]
[1725970473555,3.6935,135.37,135.33,3.6944]
[1725970473865,9.07,135.36,135.32,1.3982]
[1725970474067,9.07,135.36,135.33,3.6944]
[1725970475154,12.7638,135.36,135.33,3.6944]
[1725970476660,3.72440765,135.4,135.32,1.3982]
[1725970476868,9.07,135.37,135.32,1.3982]
[1725970477359,9.07,135.37,135.34,3.6939]
[1725970477665,9.07,135.37,135.32,1.3982]
[1725970477666,9.07,135.38,135.33,9.07]
[1725970478564,12.7631,135.38,135.35,3.6938]
[1725970479066,12.7638,135.36,135.33,3.6944]
[1725970479460,12.7638,135.36,135.32,3.6946]
[1725970480970,3.6939,135.35,135.32,3.6946]
[1725970481262,9.07,135.36,135.32,3.6946]
[1725970481666,12.7638,135.36,135.32,3.6946]
[1725970481860,9.07,135.34,135.31,1.2999]
[1725970482370,12.7643,135.34,135.31,1.2999]
[1725970482770,9.07,135.34,135.31,4.9947]
[1725970484076,12.7642,135.34,135.31,4.9947]
[1725970484371,12.7642,135.34,135.31,3.6948]
[1725970496482,3.6942,135.34,135.31,3.6948]
[1725970496789,12.7642,135.34,135.31,3.6948]
[1725970499081,3.694,135.35,135.32,3.6947]
[1725970499286,12.764,135.35,135.32,3.6947]
[1725970499586,3.6942,135.34,135.31,3.6948]
[1725970499889,9.07,135.33,135.31,3.6948]
[1725970500392,9.07,135.32,135.27,1.359]
[1725970500689,9.07,135.33,135.27,9.07]
[1725970500988,3.77799127,135.42,135.32,3.6945]
[1725970500989,9.07,135.35,135.32,3.6945]
[1725970501383,12.764,135.35,135.31,3.6948]
[1725970501584,9.07,135.34,135.31,3.6948]
[1725970501991,12.7643,135.34,135.3,3.6951]
[1725970502190,12.7643,135.34,135.28,9.07]
[1725970502191,9.07,135.34,135.28,9.07]
[1725970502583,3.6937,135.36,135.3,9.07]
[1725970502783,159.14126646,135.44,135.27,1.3608]
[1725970502784,9.07,135.38,135.32,9.07]
[1725970502991,9.07,135.38,135.32,10.4308]
[1725970503188,3.66841869,135.42,135.32,11.8052]
[1725970503392,9.07,135.39,135.34,9.07]
[1725970504087,12.763,135.39,135.35,3.6938]
[1725970504293,9.07,135.39,135.35,3.6938]
[1725970504500,9.07,135.38,135.32,11.8052]
[1725970505595,12.7633,135.38,135.34,3.694]
[1725970506494,12.7633,135.38,135.35,3.6938]
[1725970506995,9.07,135.39,135.32,2.7352]
[1725970507292,9.07,135.41,135.35,9.07]
[1725970507598,9.07,135.43,135.39,3.6927]
[1725970507799,9.07,135.43,135.38,9.07]
[1725970507997,155.44966646,135.44,135.38,9.07]
[1725970508296,164.51966646,135.44,135.38,9.07]
[1725970508991,164.51966646,135.44,135.4,3.6924]
[1725970509597,9.07,135.41,135.36,1.3117]
[1725970509801,9.07,135.38,135.36,1.3117]
[1725970509992,9.07,135.38,135.32,11.8565]
[1725970510694,9.07,135.38,135.33,3.6943]
[1725970510695,3.6935,135.37,135.33,3.6943]
[1725970510894,9.07,135.38,135.32,11.8565]
[1725970512101,12.7632,135.38,135.35,3.6938]
[1725970512399,9.07,135.38,135.35,3.6938]
[1725970512600,12.7627,135.4,135.36,3.6934]
[1725970513305,3.6927,135.4,135.37,3.6933]
[1725970513605,3.6927,135.4,135.35,9.07]
[1725970513606,12.7625,135.41,135.35,9.07]
[1725970513792,12.7625,135.41,135.37,3.6932]
[1725970514595,3.6925,135.41,135.37,3.6932]
[1725970514905,3.6925,135.4,135.37,3.6932]
[1725970515100,9.07,135.41,135.37,3.6932]
[1725970515298,9.07,135.43,135.36,10.3686]
[1725970515701,9.07,135.43,135.39,3.6928]
[1725970516097,3.6923,135.41,135.37,1.3319]
[1725970517107,3.692,135.42,135.38,3.6929]
[1725970517900,3.6923,135.41,135.38,3.6929]
[1725970518396,9.07,135.42,135.37,5.0251]
[1725970519110,3.6925,135.41,135.38,3.6931]
[1725970519303,3.6925,135.41,135.37,1.3319]
[1725970519902,9.07,135.4,135.37,1.3319]
[1725970520411,12.7627,135.4,135.37,1.3319]
[1725970521705,12.7624,135.41,135.37,1.3319]
[1725970522009,12.7624,135.41,135.37,10.4019]
[1725970522313,7.3804,135.49,135.39,9.07]
[1725970522496,1.11517735,135.48,135.39,9.07]
[1725970522704,9.07,135.46,135.39,9.07]
[1725970523413,9.07,135.45,135.4,9.07]
[1725970523605,9.07,135.41,135.37,1.3319]
[1725970523913,3.6929,135.39,135.37,1.3319]
[1725970524104,9.07,135.39,135.37,1.3319]
[1725970524305,9.07,135.39,135.36,1.2986]
[1725970524507,12.7629,135.39,135.36,1.2986]
[1725970525107,12.7629,135.39,135.36,4.9922]
[1725970525614,3.6926,135.4,135.36,4.9922]
[1725970526514,3.6928,135.39,135.36,4.9922]
[1725970527111,3.6927,135.4,135.36,4.9922]
[1725970528009,3.6927,135.4,135.37,3.6933]
[1725970528314,7.3796,135.51,135.36,10.3686]
[1725970528315,9.07,135.42,135.36,10.3686]
[1725970529208,3.6923,135.41,135.36,10.3686]
[1725970529515,9.07,135.42,135.36,10.3686]
[1725970529703,12.7627,135.4,135.36,4.9921]
[1725970530113,9.07,135.41,135.36,10.3686]
[1725970530811,9.07,135.41,135.38,3.693]
[1725970531913,7.3799,135.5,135.39,3.6927]
[1725970532113,9.07,135.42,135.39,3.6927]
[1725970532505,12.7621,135.42,135.38,3.693]
[1725970534810,3.6921,135.42,135.38,3.693]
[1725970535009,3.6921,135.42,135.39,3.6928]
[1725970535614,3.6921,135.42,135.38,3.6929]
[1725970535615,3.6923,135.41,135.38,3.6929]
[1725970536710,9.07,135.42,135.37,3.6932]
[1725970536711,3.6926,135.4,135.37,3.6932]
[1725970537817,3.6924,135.41,135.37,3.6932]
[1725970538016,3.6924,135.41,135.38,3.6931]
[1725970539712,3.6921,135.42,135.39,3.6926]
[1725970540213,9.07,135.44,135.39,9.07]
[1725970540409,7.3799,135.5,135.39,9.07]
[1725970540410,9.07,135.45,135.39,9.07]
[1725970540710,3.6916,135.44,135.39,9.07]
[1725970541119,3.73531801,135.53,135.4,9.07]
[1725970541421,9.07,135.47,135.43,3.6916]
[1725970541813,3.6909,135.46,135.43,3.6916]
[1725970542712,9.07,135.45,135.39,10.3995]
[1725970542921,9.07,135.44,135.39,10.3995]
[1725970543316,3.75830994,135.48,135.39,10.3995]
[1725970543510,9.07,135.45,135.39,10.3995]
[1725970543716,12.7613,135.45,135.42,3.6918]
[1725970546328,3.6915,135.44,135.41,3.6921]
[1725970546527,9.07,135.45,135.4,9.07]
[1725970546918,12.7613,135.45,135.42,3.6918]
[1725970547923,12.7613,135.45,135.4,9.07]
[1725970547924,3.6913,135.45,135.43,3.6917]
[1725970548123,12.761,135.46,135.43,3.6917]
[1725970549321,3.691,135.46,135.43,3.6917]
[1725970549624,12.7607,135.47,135.44,3.6914]
[1725970551128,3.6909,135.46,135.44,3.6914]
[1725970551328,9.07,135.47,135.44,3.6914]
[1725970551630,12.7607,135.47,135.44,3.6914]
[1725970551927,9.07,135.47,135.44,3.6914]
[1725970552928,3.6911,135.46,135.44,3.6914]
[1725970554635,3.6913,135.45,135.43,3.6916]
[1725970555132,12.7607,135.47,135.41,1.3232]
[1725970555331,9.07,135.47,135.41,1.3232]
[1725970555827,3.6911,135.46,135.43,3.6915]
[1725970556335,3.6912,135.45,135.43,3.6915]
[1725970557226,3.691,135.46,135.43,3.6916]
[1725970558424,3.691,135.46,135.44,3.6914]
[1725970558629,3.691,135.46,135.41,1.3232]
[1725970559336,3.691,135.46,135.43,3.6916]
[1725970560433,3.691,135.46,135.42,9.07]
[1725970561033,3.6912,135.45,135.43,3.6916]
[1725970561433,3.6914,135.45,135.42,3.692]
[1725970561634,9.07,135.46,135.42,3.692]
[1725970562139,3.6913,135.45,135.42,3.692]
[1725970562339,3.6913,135.45,135.43,3.6917]
[1725970563235,3.6915,135.44,135.41,1.3232]
[1725970564133,3.6915,135.44,135.41,5.0153]
[1725970564534,9.07,135.44,135.39,5.0222]
[1725970565230,3.6921,135.42,135.39,5.0222]
[1725970565435,9.07,135.44,135.4,3.6925]
[1725970566229,3.6919,135.43,135.4,3.6925]
[1725970567439,3.692,135.42,135.4,3.6925]
[1725970567643,9.07,135.42,135.39,1.3295]
[1725970567832,9.07,135.41,135.36,1.3284]
[1725970568141,3.6927,135.4,135.36,5.0218]
[1725970568341,9.07,135.41,135.36,1.3284]
[1725970568740,3.693,135.39,135.36,1.3284]
[1725970569436,9.07,135.39,135.34,3.6939]
[1725970569636,9.07,135.38,135.33,2.6866]
[1725970570038,3.6935,135.37,135.33,6.3809]
[1725970570236,3.6935,135.37,135.33,2.6866]
[1725970571336,12.7632,135.38,135.34,3.6941]
[1725970571641,9.07,135.38,135.34,3.6941]
[1725970572439,3.6934,135.37,135.33,6.3809]
[1725970573245,3.6937,135.36,135.33,2.6866]
[1725970573742,12.7637,135.36,135.33,1.3621]
[1725970575936,3.60654197,135.42,135.33,5.0565]
[1725970575937,3.6934,135.37,135.33,5.0565]
[1725970576139,3.6934,135.37,135.33,1.3621]
[1725970576351,12.7632,135.38,135.34,3.6941]
[1725970576540,9.07,135.39,135.34,9.07]
[1725970576932,151.7590557,135.43,135.35,9.07]
[1725970577140,9.07,135.42,135.35,9.07]
[1725970577545,3.6926,135.4,135.35,9.07]
[1725970578138,3.6926,135.4,135.36,3.6935]
[1725970581445,3.6929,135.39,135.35,12.7637]
[1725970581850,3.6929,135.39,135.35,9.07]
[1725970582256,3.6926,135.4,135.35,9.07]
[1725970582744,3.6926,135.4,135.36,9.07]
[1725970584147,3.6924,135.41,135.37,3.6933]
[1725970584340,3.6924,135.41,135.36,9.07]
[1725970584543,3.6924,135.41,135.37,1.3962]
[1725970584740,3.6913,135.45,135.41,3.6923]
[1725970585544,3.6913,135.45,135.42,3.692]
[1725970585752,3.6913,135.45,135.4,9.07]
[1725970586755,3.6913,135.45,135.41,3.6921]
[1725970587350,3.6915,135.44,135.4,12.7624]
[1725970587944,3.6918,135.43,135.4,12.7624]
[1725970588555,3.6915,135.44,135.41,3.6922]
[1725970593666,12.7615,135.44,135.41,3.6922]
[1725970594862,9.07,135.43,135.38,2.6483]
[1725970595162,9.07,135.42,135.37,1.3962]
[1725970595353,12.7622,135.42,135.37,1.3962]
[1725970595959,12.7622,135.42,135.38,3.6928]
[1725970596462,12.7622,135.42,135.38,3.6929]
[1725970596758,9.07,135.42,135.33,2.6827]
[1725970596966,9.07,135.42,135.37,3.6931]
[1725970597161,3.6928,135.4,135.34,1.3344]
[1725970597361,9.07,135.41,135.34,10.4044]
[1725970597762,9.07,135.41,135.36,3.6934]
[1725970598062,3.6929,135.39,135.36,3.6934]
[1725970599151,12.7629,135.39,135.35,3.6938]
[1725970601156,12.7629,135.39,135.34,10.4044]
[1725970602153,12.7629,135.39,135.36,3.6935]
[1725970603873,3.6929,135.39,135.36,3.6935]
[1725970605056,3.6929,135.39,135.35,3.6937]
[1725970605260,3.6931,135.38,135.35,3.6937]
[1725970605558,9.07,135.4,135.35,3.6937]
[1725970606164,3.6929,135.39,135.36,3.6936]
[1725970611168,12.7626,135.4,135.37,3.6932]
[1725970611370,3.6926,135.4,135.37,3.6932]
[1725970612574,151.75173141,135.44,135.36,9.07]
[1725970612871,9.07,135.43,135.38,9.07]
[1725970613059,3.6921,135.42,135.39,3.6926]
[1725970613769,3.6923,135.41,135.38,12.7629]
[1725970613966,3.6923,135.41,135.38,9.07]
[1725970614665,3.6923,135.41,135.38,12.7629]
[1725970614865,3.6923,135.41,135.34,1.3344]
[1725970614866,3.6926,135.4,135.34,1.3344]
[1725970615070,9.07,135.4,135.34,1.3344]
[1725970615268,9.07,135.4,135.34,10.4044]
[1725970615571,12.7627,135.4,135.34,10.4044]
[1725970615964,12.7627,135.4,135.36,3.6935]
[1725970617471,3.6929,135.39,135.36,3.6935]
[1725970621875,3.6929,135.39,135.35,3.6937]
[1725970622277,3.6929,135.39,135.34,10.4044]
[1725970622570,151.75173141,135.44,135.37,9.07]
[1725970622774,9.07,135.43,135.37,9.07]
[1725970622969,9.07,135.43,135.38,3.6929]
[1725970622970,3.6924,135.41,135.38,3.6929]
[1725970623864,9.07,135.42,135.34,1.3344]
[1725970624065,9.07,135.42,135.35,9.07]
[1725970624667,3.6927,135.4,135.36,3.6935]
[1725970626286,3.6927,135.4,135.37,3.6933]
[1725970626485,3.6927,135.4,135.35,9.07]
[1725970627593,3.6925,135.41,135.37,9.07]
[1725970627894,151.75173141,135.44,135.37,9.07]
[1725970628087,3.6921,135.42,135.37,9.07]
[1725970628388,9.07,135.43,135.37,9.07]
[1725970629986,160.82173141,135.44,135.37,9.07]
[1725970630201,151.75173141,135.44,135.38,9.07]
[1725970630388,151.75173141,135.44,135.42,3.692]
[1725970630601,151.75173141,135.44,135.4,9.07]
[1725970631089,160.82173141,135.44,135.39,1.296]
[1725970631282,9.07,135.43,135.39,1.296]
[1725970631490,9.07,135.42,135.38,1.3227]
[1725970633185,3.6924,135.41,135.38,1.3227]
[1725970633992,3.6924,135.41,135.38,5.0156]
[1725970638092,3.692,135.42,135.39,3.6927]
[1725970638489,9.07,135.43,135.38,1.3227]
[1725970638692,9.07,135.43,135.39,3.6927]
[1725970639494,3.6921,135.42,135.39,3.6927]
[1725970640394,151.75173141,135.44,135.38,10.3927]
[1725970640596,151.75173141,135.44,135.4,9.07]
[1725970640897,151.75173141,135.44,135.42,3.692]
[1725970642298,155.44323141,135.44,135.42,3.692]
[1725970642492,164.51323141,135.44,135.42,3.692]
[1725970642997,160.82173141,135.44,135.42,3.692]
[1725970645996,160.82173141,135.44,135.43,3.6917]
[1725970645997,151.75173141,135.44,135.43,3.6917]
[1725970646195,9.07,135.47,135.43,3.6917]
[1725970646394,9.07,135.47,135.41,1.2801]
[1725970646697,12.7609,135.47,135.44,3.6913]
[1725970647094,3.6909,135.47,135.44,3.6913]
[1725970647405,12.7609,135.46,135.43,3.6916]
[1725970648403,12.7609,135.46,135.44,3.6914]
[1725970652906,3.75017894,135.49,135.41,1.2801]
[1725970652907,9.07,135.45,135.41,1.2801]
[1725970653110,3.75017894,135.49,135.38,1.3227]
[1725970653111,9.07,135.42,135.38,1.3227]
[1725970653410,9.07,135.4,135.38,3.693]
[1725970655802,12.7626,135.4,135.37,3.6932]
[1725970656702,9.07,135.4,135.38,3.693]
[1725970659009,12.7629,135.39,135.36,4.9656]
[1725970659908,12.7629,135.39,135.36,1.2721]
[1725970660104,9.07,135.39,135.35,4.9686]
[1725970660516,9.07,135.39,135.36,3.6935]
[1725970660916,12.7629,135.39,135.36,3.6935]
[1725970661221,9.07,135.39,135.37,3.6932]
[1725970661421,9.07,135.39,135.35,1.2748]
[1725970661622,12.7628,135.39,135.35,1.2748]
[1725970663033,9.07,135.4,135.35,10.3448]
[1725970663527,9.07,135.4,135.38,3.6929]
[1725970665230,9.07,135.4,135.39,3.6928]
[1725970665523,9.07,135.4,135.35,10.3448]
[1725970666729,9.07,135.39,135.35,1.2748]
[1725970667633,9.07,135.39,135.37,3.6931]
[1725970668223,9.07,135.39,135.38,3.6931]
[1725970668422,3.6923,135.41,135.38,3.6931]
[1725970668423,9.07,135.41,135.38,3.6931]
[1725970668832,12.7623,135.41,135.38,3.6931]
[1725970671031,12.7623,135.41,135.37,3.6932]
[1725970671430,3.6925,135.4,135.37,3.6932]
[1725970672334,12.7623,135.41,135.38,3.6931]
[1725970672731,9.07,135.41,135.35,1.2748]
[1725970673233,9.07,135.39,135.35,1.2748]
[1725970673532,9.07,135.39,135.37,3.6932]
[1725970677032,12.7628,135.39,135.36,3.6935]
[1725970677732,9.07,135.38,135.36,3.6935]
[1725970679639,12.7631,135.38,135.35,3.6938]
[1725970679833,9.07,135.37,135.35,3.6938]
[1725970680833,12.7631,135.38,135.35,3.6938]
[1725970681034,3.6934,135.37,135.34,3.694]
[1725970681227,9.07,135.38,135.34,3.694]
[1725970682140,12.7632,135.38,135.34,3.694]
[1725970682542,12.7632,135.38,135.35,3.6938]
[1725970683544,9.07,135.37,135.35,3.6938]
[1725970687550,9.07,135.37,135.34,3.6941]
[1725970687551,12.7634,135.37,135.34,3.6941]
[1725970688452,9.07,135.35,135.33,3.6944]
[1725970690547,9.07,135.35,135.34,3.6942]
[1725970693551,12.7635,135.37,135.34,3.6942]
[1725970693946,3.6937,135.36,135.33,3.6943]